[Event "Late-Titled-Tuesday-Blitz-June-25-2024"]
[Site "Chess.com"]
[Date "2024.06.25"]
[Round "11"]
[White "RaugintaBulba"]
[Black "Bykov_Egor"]
[Result "1-0"]
[WhiteElo "2492"]
[BlackElo "2600"]
[TimeControl "180+1"]
[EndTime "16:08:07 PDT"]
[Termination "RaugintaBulba won by resignation"]

1. d4 {[%clk 0:02:08]} 1... Nf6 {[%clk 0:02:53.3]} 2. c4 {[%clk 0:02:08.9]} 2...
d6 {[%clk 0:02:50.1]} 3. Nf3 {[%clk 0:02:08.1]} 3... Nbd7 {[%clk 0:02:50]} 4.
Nc3 {[%clk 0:02:05.3]} 4... e5 {[%clk 0:02:49.9]} 5. e4 {[%clk 0:02:04.3]} 5...
Be7 {[%clk 0:02:44]} 6. Be2 {[%clk 0:02:03.5]} 6... O-O {[%clk 0:02:43.4]} 7.
O-O {[%clk 0:02:03]} 7... Re8 {[%clk 0:02:42.3]} 8. Be3 {[%clk 0:02:00.3]} 8...
Ng4 {[%clk 0:02:38.8]} 9. Bc1 {[%clk 0:01:48.8]} 9... Ngf6 {[%clk 0:02:37.9]}
10. Be3 {[%clk 0:01:47.7]} 10... Bf8 {[%clk 0:02:27.2]} 11. d5 {[%clk
0:01:38.8]} 11... g6 {[%clk 0:02:13.5]} 12. b4 {[%clk 0:01:33.7]} 12... Nh5
{[%clk 0:01:59]} 13. Nd2 {[%clk 0:01:30.7]} 13... Nf4 {[%clk 0:01:56.2]} 14. Bf3
{[%clk 0:01:29.6]} 14... f5 {[%clk 0:01:48.6]} 15. exf5 {[%clk 0:01:29.6]} 15...
gxf5 {[%clk 0:01:48.3]} 16. Bxf4 {[%clk 0:01:18.1]} 16... exf4 {[%clk
0:01:47.8]} 17. Nb3 {[%clk 0:01:18.8]} 17... Bg7 {[%clk 0:01:35.1]} 18. Nd4
{[%clk 0:01:13.6]} 18... Ne5 {[%clk 0:01:35.2]} 19. Rc1 {[%clk 0:01:07]} 19...
Bd7 {[%clk 0:01:18.1]} 20. Bh5 {[%clk 0:01:02.2]} 20... Re7 {[%clk 0:01:14.4]}
21. c5 {[%clk 0:01:01.7]} 21... Qf8 {[%clk 0:01:07.4]} 22. Ncb5 {[%clk
0:00:57.4]} 22... Bxb5 {[%clk 0:00:40.2]} 23. Nxb5 {[%clk 0:00:58.3]} 23... Qf6
{[%clk 0:00:35.5]} 24. cxd6 {[%clk 0:00:56.5]} 24... cxd6 {[%clk 0:00:35.8]} 25.
Nc7 {[%clk 0:00:55.8]} 25... Rc8 {[%clk 0:00:33.6]} 26. Ne6 {[%clk 0:00:55.4]}
26... Rxc1 {[%clk 0:00:28.1]} 27. Qxc1 {[%clk 0:00:56.3]} 27... f3 {[%clk
0:00:24]} 28. Qc8+ {[%clk 0:00:53.1]} 28... Bf8 {[%clk 0:00:24.6]} 29. gxf3
{[%clk 0:00:46.2]} 29... Ng6 {[%clk 0:00:12.6]} 30. Kh1 {[%clk 0:00:44.4]} 30...
Qf7 {[%clk 0:00:11]} 31. Rg1 {[%clk 0:00:43.2]} 31... Re8 {[%clk 0:00:11.3]} 32.
Qc2 {[%clk 0:00:33.9]} 32... Bh6 {[%clk 0:00:11.5]} 33. f4 {[%clk 0:00:30]}
33... Kh8 {[%clk 0:00:11.9]} 34. Qc3+ {[%clk 0:00:25.3]} 34... Kg8 {[%clk
0:00:10.7]} 35. Qh3 {[%clk 0:00:23.6]} 35... Rxe6 {[%clk 0:00:08.4]} 36. dxe6
{[%clk 0:00:23.3]} 36... Qxe6 {[%clk 0:00:05.9]} 37. Bxg6 {[%clk 0:00:23.9]}
37... hxg6 {[%clk 0:00:05.1]} 38. Qe3 {[%clk 0:00:16]} 38... Qd5+ {[%clk
0:00:04.9]} 39. f3 {[%clk 0:00:15.8]} 39... Kf7 {[%clk 0:00:05.5]} 40. Re1
{[%clk 0:00:13.3]} 40... Bf8 {[%clk 0:00:06.1]} 41. Re2 {[%clk 0:00:11.1]} 41...
Qd1+ {[%clk 0:00:04.9]} 42. Kg2 {[%clk 0:00:11.5]} 42... Kg7 {[%clk 0:00:04.4]}
43. Rd2 {[%clk 0:00:09.5]} 43... Qc1 {[%clk 0:00:03.6]} 44. Qd4+ {[%clk
0:00:08.5]} 44... Kh7 {[%clk 0:00:03.9]} 45. Qd5 {[%clk 0:00:07.7]} 45... Bg7
{[%clk 0:00:04.2]} 46. Qxd6 {[%clk 0:00:07.2]} 46... Qc4 {[%clk 0:00:04.8]} 47.
Qd3 {[%clk 0:00:03.9]} 47... Qxf4 {[%clk 0:00:05]} 48. Rf2 {[%clk 0:00:02.9]}
48... Qg5+ {[%clk 0:00:05.5]} 49. Kf1 {[%clk 0:00:03.4]} 49... Be5 {[%clk
0:00:06.2]} 50. Ke2 {[%clk 0:00:03.7]} 50... Qf4 {[%clk 0:00:06.5]} 51. Qd7+
{[%clk 0:00:03.9]} 51... Kh6 {[%clk 0:00:06.7]} 52. Qd2 {[%clk 0:00:04]} 52...
Kh5 {[%clk 0:00:03.7]} 53. Qxf4 {[%clk 0:00:04.2]} 53... Bxf4 {[%clk 0:00:04.6]}
54. Rg2 {[%clk 0:00:05]} 54... g5 {[%clk 0:00:04.6]} 55. h3 {[%clk 0:00:05.2]}
55... Kh4 {[%clk 0:00:05.1]} 56. Rg1 {[%clk 0:00:04]} 56... Kxh3 {[%clk
0:00:05.7]} 57. Rd1 {[%clk 0:00:04.7]} 57... b6 {[%clk 0:00:03.6]} 58. Rd5
{[%clk 0:00:04.6]} 58... a5 {[%clk 0:00:04.1]} 59. Rxf5 {[%clk 0:00:04.8]} 59...
axb4 {[%clk 0:00:04.3]} 60. Rb5 {[%clk 0:00:05.3]} 60... g4 {[%clk 0:00:03.9]}
61. fxg4 {[%clk 0:00:05.3]} 61... Kxg4 {[%clk 0:00:04.8]} 62. Rxb4 {[%clk
0:00:05.9]} 62... Kf5 {[%clk 0:00:05]} 63. Rxb6 {[%clk 0:00:06.3]} 63... Ke5
{[%clk 0:00:04.7]} 64. Kd3 {[%clk 0:00:06.6]} 64... Kd5 {[%clk 0:00:05.2]} 65.
Rb5+ {[%clk 0:00:06.8]} 65... Kc6 {[%clk 0:00:05.5]} 66. Kc4 {[%clk 0:00:07.7]}
66... Bc7 {[%clk 0:00:05.9]} 67. a4 {[%clk 0:00:08.6]} 67... Bb6 {[%clk
0:00:04.4]} 68. a5 {[%clk 0:00:08.8]} 68... Ba7 {[%clk 0:00:05.1]} 69. a6 {[%clk
0:00:09.1]} 69... Bg1 {[%clk 0:00:05.1]} 70. Rb7 {[%clk 0:00:09.2]} 70... Bf2
{[%clk 0:00:05.7]} 71. Rf7 {[%clk 0:00:09.3]} 1-0

[Event "Late-Titled-Tuesday-Blitz-June-25-2024"]
[Site "Chess.com"]
[Date "2024.06.25"]
[Round "11"]
[White "sergeikim"]
[Black "BardArtem"]
[Result "0-1"]
[WhiteElo "2602"]
[BlackElo "2813"]
[TimeControl "180+1"]
[EndTime "16:08:08 PDT"]
[Termination "BardArtem won on time"]

1. d4 {[%clk 0:03:00.9]} 1... d5 {[%clk 0:02:59.5]} 2. c4 {[%clk 0:03:00.8]}
2... e6 {[%clk 0:02:59.9]} 3. Nc3 {[%clk 0:03:00.7]} 3... Nf6 {[%clk 0:03:00.3]}
4. Nf3 {[%clk 0:03:00.7]} 4... c5 {[%clk 0:03:00.3]} 5. e3 {[%clk 0:02:59.4]}
5... Nc6 {[%clk 0:02:53.1]} 6. a3 {[%clk 0:02:58.7]} 6... cxd4 {[%clk
0:02:41.9]} 7. exd4 {[%clk 0:02:58]} 7... Be7 {[%clk 0:02:42.6]} 8. Bd3 {[%clk
0:02:56.4]} 8... dxc4 {[%clk 0:02:38]} 9. Bxc4 {[%clk 0:02:56.6]} 9... O-O
{[%clk 0:02:37.3]} 10. O-O {[%clk 0:02:56.6]} 10... Nd5 {[%clk 0:02:38]} 11. Ne4
{[%clk 0:02:54.6]} 11... b6 {[%clk 0:02:34.4]} 12. Re1 {[%clk 0:02:44.6]} 12...
Bb7 {[%clk 0:02:30.6]} 13. Bg5 {[%clk 0:02:39.8]} 13... h6 {[%clk 0:02:26]} 14.
Bd2 {[%clk 0:02:20]} 14... Rc8 {[%clk 0:02:24.6]} 15. Rc1 {[%clk 0:02:19.3]}
15... Na5 {[%clk 0:02:12]} 16. Bxa5 {[%clk 0:02:09.6]} 16... bxa5 {[%clk
0:02:11.3]} 17. Qd2 {[%clk 0:02:09.9]} 17... Qb6 {[%clk 0:02:09.2]} 18. Ne5
{[%clk 0:02:07.5]} 18... Rfd8 {[%clk 0:02:07.2]} 19. h3 {[%clk 0:01:50]} 19...
Rc7 {[%clk 0:01:55.6]} 20. Ba2 {[%clk 0:01:44.9]} 20... Rdc8 {[%clk 0:01:55.2]}
21. Rxc7 {[%clk 0:01:43.1]} 21... Rxc7 {[%clk 0:01:46]} 22. Bb1 {[%clk 0:01:23]}
22... Ba8 {[%clk 0:01:14.3]} 23. Ng3 {[%clk 0:01:14.3]} 23... Rb7 {[%clk
0:01:10.2]} 24. Qd3 {[%clk 0:01:06.1]} 24... f5 {[%clk 0:00:57.4]} 25. Ng6
{[%clk 0:00:59]} 25... Bf6 {[%clk 0:00:53]} 26. Nh5 {[%clk 0:00:55.1]} 26...
Qxd4 {[%clk 0:00:42.6]} 27. Qxd4 {[%clk 0:00:42.7]} 27... Bxd4 {[%clk
0:00:41.3]} 28. Rxe6 {[%clk 0:00:42.4]} 28... Kf7 {[%clk 0:00:31.8]} 29. Bxf5
{[%clk 0:00:36.4]} 29... Rxb2 {[%clk 0:00:31.3]} 30. Kh1 {[%clk 0:00:26.1]}
30... Rb8 {[%clk 0:00:10.8]} 31. f4 {[%clk 0:00:20.2]} 31... Bb7 {[%clk
0:00:05]} 32. Ne5+ {[%clk 0:00:16.1]} 32... Bxe5 {[%clk 0:00:05.6]} 33. fxe5
{[%clk 0:00:15]} 33... Bc8 {[%clk 0:00:03.3]} 34. Rd6 {[%clk 0:00:13.2]} 34...
Bxf5 {[%clk 0:00:04]} 35. Rxd5 {[%clk 0:00:13.3]} 35... Rb1+ {[%clk 0:00:03.2]}
36. Kh2 {[%clk 0:00:13]} 36... Rb2 {[%clk 0:00:03.9]} 37. Rxa5 {[%clk
0:00:12.7]} 37... g6 {[%clk 0:00:02.7]} 38. Nf4 {[%clk 0:00:12.1]} 38... Be4
{[%clk 0:00:02.2]} 39. Rxa7+ {[%clk 0:00:11.5]} 39... Ke8 {[%clk 0:00:02.9]} 40.
Kg1 {[%clk 0:00:08.1]} 40... g5 {[%clk 0:00:03.2]} 41. Ne6 {[%clk 0:00:07.9]}
41... Rxg2+ {[%clk 0:00:03.9]} 42. Kf1 {[%clk 0:00:08.4]} 42... Ra2 {[%clk
0:00:04.3]} 43. Nc5 {[%clk 0:00:07.9]} 43... Bd5 {[%clk 0:00:04.1]} 44. e6
{[%clk 0:00:08]} 44... h5 {[%clk 0:00:03.5]} 45. Rc7 {[%clk 0:00:06.7]} 45... g4
{[%clk 0:00:03.4]} 46. hxg4 {[%clk 0:00:06.2]} 46... h4 {[%clk 0:00:04.1]} 47.
Rh7 {[%clk 0:00:05.8]} 47... h3 {[%clk 0:00:03.9]} 48. g5 {[%clk 0:00:05.5]}
48... h2 {[%clk 0:00:03.4]} 49. Rh8+ {[%clk 0:00:05.3]} 49... Ke7 {[%clk
0:00:03.5]} 50. Rh7+ {[%clk 0:00:05.6]} 50... Kd6 {[%clk 0:00:04.2]} 51. e7
{[%clk 0:00:05.9]} 51... Bc6 {[%clk 0:00:02.9]} 52. Ne4+ {[%clk 0:00:02.7]}
52... Ke5 {[%clk 0:00:02.9]} 53. Nf6 {[%clk 0:00:02.5]} 53... Ra1+ {[%clk
0:00:02.4]} 54. Kf2 {[%clk 0:00:02.5]} 54... h1=Q {[%clk 0:00:03.3]} 55. Rxh1
{[%clk 0:00:02.5]} 55... Rxh1 {[%clk 0:00:04.2]} 56. e8=Q+ {[%clk 0:00:02.8]}
56... Bxe8 {[%clk 0:00:04.8]} 57. Nxe8 {[%clk 0:00:03.6]} 57... Kf5 {[%clk
0:00:03.4]} 58. Ke3 {[%clk 0:00:03.1]} 58... Re1+ {[%clk 0:00:03.6]} 59. Kd4
{[%clk 0:00:03.4]} 59... Rxe8 {[%clk 0:00:04.5]} 60. Kc5 {[%clk 0:00:04]} 60...
Ra8 {[%clk 0:00:01.6]} 61. Kb4 {[%clk 0:00:03.6]} 61... Ke6 {[%clk 0:00:02.2]}
62. g6 {[%clk 0:00:02.7]} 62... Kd6 {[%clk 0:00:02.5]} 63. g7 {[%clk 0:00:01.9]}
63... Kc6 {[%clk 0:00:02.9]} 64. a4 {[%clk 0:00:01.7]} 64... Rg8 {[%clk
0:00:03.3]} 65. a5 {[%clk 0:00:01.4]} 65... Rxg7 {[%clk 0:00:03.9]} 66. Kc4
{[%clk 0:00:01.3]} 66... Rg4+ {[%clk 0:00:04.4]} 67. Kb3 {[%clk 0:00:01.2]}
67... Kb5 {[%clk 0:00:05.3]} 0-1

[Event "Late-Titled-Tuesday-Blitz-June-25-2024"]
[Site "Chess.com"]
[Date "2024.06.25"]
[Round "11"]
[White "Piriflillo"]
[Black "Fore_Man"]
[Result "1/2-1/2"]
[WhiteElo "2512"]
[BlackElo "2244"]
[TimeControl "180+1"]
[EndTime "16:08:15 PDT"]
[Termination "Game drawn by repetition"]

1. Nf3 {[%clk 0:03:00.9]} 1... Nf6 {[%clk 0:02:59.7]} 2. b3 {[%clk 0:03:01]}
2... e6 {[%clk 0:03:00.2]} 3. Bb2 {[%clk 0:03:01.1]} 3... d5 {[%clk 0:03:00.8]}
4. e3 {[%clk 0:03:01.2]} 4... c5 {[%clk 0:03:01.2]} 5. Bb5+ {[%clk 0:02:59]}
5... Bd7 {[%clk 0:03:00.8]} 6. Bxd7+ {[%clk 0:02:58]} 6... Nbxd7 {[%clk
0:03:01.7]} 7. O-O {[%clk 0:02:57.4]} 7... Bd6 {[%clk 0:03:02.1]} 8. d3 {[%clk
0:02:54.4]} 8... O-O {[%clk 0:03:02.3]} 9. Nbd2 {[%clk 0:02:54.5]} 9... Qc7
{[%clk 0:03:01.7]} 10. h3 {[%clk 0:02:48.1]} 10... b5 {[%clk 0:03:00.7]} 11. e4
{[%clk 0:02:40.4]} 11... d4 {[%clk 0:02:59.2]} 12. Qe2 {[%clk 0:02:38.8]} 12...
Nh5 {[%clk 0:02:50.6]} 13. g3 {[%clk 0:02:36.1]} 13... Nhf6 {[%clk 0:02:36.1]}
14. b4 {[%clk 0:02:31.2]} 14... e5 {[%clk 0:02:34.4]} 15. bxc5 {[%clk 0:02:29]}
15... Qxc5 {[%clk 0:02:33.6]} 16. Nb3 {[%clk 0:02:25.9]} 16... Qc7 {[%clk
0:02:31.2]} 17. Rac1 {[%clk 0:02:24.4]} 17... b4 {[%clk 0:02:30.1]} 18. Nbd2
{[%clk 0:02:24.1]} 18... Nb6 {[%clk 0:02:27.5]} 19. Ba1 {[%clk 0:02:14.2]} 19...
a5 {[%clk 0:02:27.1]} 20. Nh4 {[%clk 0:02:11.8]} 20... Kh8 {[%clk 0:02:16.7]}
21. Nf5 {[%clk 0:02:09.5]} 21... Bc5 {[%clk 0:02:14.9]} 22. f4 {[%clk
0:02:06.3]} 22... a4 {[%clk 0:02:12.7]} 23. fxe5 {[%clk 0:02:04.2]} 23... Qxe5
{[%clk 0:02:12.2]} 24. Nf3 {[%clk 0:02:04.8]} 24... Qc7 {[%clk 0:02:04]} 25.
Bxd4 {[%clk 0:02:01.5]} 25... Bxd4+ {[%clk 0:02:03.6]} 26. N3xd4 {[%clk
0:02:00.8]} 26... g6 {[%clk 0:01:56]} 27. Nb5 {[%clk 0:01:28]} 27... Qe5 {[%clk
0:01:45.5]} 28. Nfd4 {[%clk 0:01:17.7]} 28... Qxg3+ {[%clk 0:01:44.4]} 29. Qg2
{[%clk 0:01:18.2]} 29... Qxg2+ {[%clk 0:01:38.1]} 30. Kxg2 {[%clk 0:01:18.6]}
30... Nh5 {[%clk 0:01:38.6]} 31. Nd6 {[%clk 0:01:16.2]} 31... Kg8 {[%clk
0:01:35.4]} 32. Nc6 {[%clk 0:01:09.2]} 32... Kg7 {[%clk 0:01:25.2]} 33. Nxb4
{[%clk 0:01:04.1]} 33... a3 {[%clk 0:01:24.4]} 34. c4 {[%clk 0:00:58.3]} 34...
Nd7 {[%clk 0:01:20.2]} 35. c5 {[%clk 0:00:55.3]} 35... Rab8 {[%clk 0:01:13.6]}
36. c6 {[%clk 0:00:40.5]} 36... Ne5 {[%clk 0:01:13.2]} 37. Nc2 {[%clk
0:00:26.8]} 37... Nxc6 {[%clk 0:01:06]} 38. d4 {[%clk 0:00:21.8]} 38... Rb2
{[%clk 0:01:04.9]} 39. Rf2 {[%clk 0:00:21.1]} 39... Rxa2 {[%clk 0:00:57.7]} 40.
Rcf1 {[%clk 0:00:19.5]} 40... f6 {[%clk 0:00:54.2]} 41. d5 {[%clk 0:00:14.3]}
41... Ne5 {[%clk 0:00:53.3]} 42. Nd4 {[%clk 0:00:12.7]} 42... Rxf2+ {[%clk
0:00:51.6]} 43. Rxf2 {[%clk 0:00:12.3]} 43... Kh6 {[%clk 0:00:47.6]} 44. Ne6
{[%clk 0:00:07]} 44... Ra8 {[%clk 0:00:46.6]} 45. Ra2 {[%clk 0:00:06.7]} 45...
g5 {[%clk 0:00:37.6]} 46. Nf5+ {[%clk 0:00:04.6]} 46... Kg6 {[%clk 0:00:36.3]}
47. d6 {[%clk 0:00:03.1]} 47... Nf4+ {[%clk 0:00:32.3]} 48. Nxf4+ {[%clk
0:00:03.5]} 48... gxf4 {[%clk 0:00:31.8]} 49. Nd4 {[%clk 0:00:03.5]} 49... Nc4
{[%clk 0:00:27.6]} 50. Nb5 {[%clk 0:00:02.7]} 50... Rd8 {[%clk 0:00:23.3]} 51.
Nxa3 {[%clk 0:00:02.6]} 51... Nxd6 {[%clk 0:00:22]} 52. Rd2 {[%clk 0:00:02.1]}
52... Nf7 {[%clk 0:00:22.2]} 53. Rxd8 {[%clk 0:00:02.1]} 53... Nxd8 {[%clk
0:00:23.1]} 54. Nc4 {[%clk 0:00:02.6]} 54... Kg5 {[%clk 0:00:22.5]} 55. Kf3
{[%clk 0:00:03.2]} 55... Ne6 {[%clk 0:00:22.1]} 56. Nd6 {[%clk 0:00:03.8]} 56...
Nd4+ {[%clk 0:00:20.9]} 57. Kf2 {[%clk 0:00:04]} 57... Ne6 {[%clk 0:00:13.9]}
58. Nf7+ {[%clk 0:00:04]} 58... Kg6 {[%clk 0:00:13.7]} 59. Nd6 {[%clk 0:00:04]}
59... h5 {[%clk 0:00:11.4]} 60. Nf5 {[%clk 0:00:04.1]} 60... Kg5 {[%clk
0:00:11.3]} 61. Kf3 {[%clk 0:00:04.4]} 61... Kg6 {[%clk 0:00:08.4]} 62. Nh4+
{[%clk 0:00:04.2]} 62... Kg5 {[%clk 0:00:08.3]} 63. Nf5 {[%clk 0:00:04.7]} 63...
h4 {[%clk 0:00:08.7]} 64. Nd6 {[%clk 0:00:02.2]} 64... Nd4+ {[%clk 0:00:08.5]}
65. Kf2 {[%clk 0:00:02.9]} 65... Nc6 {[%clk 0:00:06.7]} 66. Nf7+ {[%clk
0:00:02.8]} 66... Kg6 {[%clk 0:00:06.3]} 67. Nd6 {[%clk 0:00:03.1]} 67... Ne5
{[%clk 0:00:06.7]} 68. Nc8 {[%clk 0:00:02.2]} 68... Kg5 {[%clk 0:00:05.9]} 69.
Ne7 {[%clk 0:00:02.9]} 69... f3 {[%clk 0:00:06]} 70. Nd5 {[%clk 0:00:02.8]}
70... f5 {[%clk 0:00:05.1]} 71. exf5 {[%clk 0:00:03]} 71... Kxf5 {[%clk
0:00:06]} 72. Ne3+ {[%clk 0:00:03.3]} 72... Kf4 {[%clk 0:00:06.3]} 73. Nd5+
{[%clk 0:00:03.6]} 73... Ke4 {[%clk 0:00:06.4]} 74. Nc3+ {[%clk 0:00:03.7]}
74... Kd3 {[%clk 0:00:05.4]} 75. Nd5 {[%clk 0:00:02.5]} 75... Ke4 {[%clk
0:00:05.5]} 76. Nc3+ {[%clk 0:00:02.7]} 76... Kf4 {[%clk 0:00:06.1]} 77. Nd5+
{[%clk 0:00:03.3]} 77... Ke4 {[%clk 0:00:04.1]} 1/2-1/2

[Event "Late-Titled-Tuesday-Blitz-June-25-2024"]
[Site "Chess.com"]
[Date "2024.06.25"]
[Round "11"]
[White "AlejandroArias"]
[Black "dosto07"]
[Result "0-1"]
[WhiteElo "2338"]
[BlackElo "2426"]
[TimeControl "180+1"]
[EndTime "16:08:15 PDT"]
[Termination "dosto07 won on time"]

1. e4 {[%clk 0:03:00.9]} 1... e5 {[%clk 0:03:00]} 2. Nf3 {[%clk 0:03:00]} 2...
Nc6 {[%clk 0:03:00.7]} 3. Bb5 {[%clk 0:02:59.7]} 3... a6 {[%clk 0:03:00.5]} 4.
Ba4 {[%clk 0:02:59.5]} 4... Nf6 {[%clk 0:03:01]} 5. O-O {[%clk 0:02:59.3]} 5...
Be7 {[%clk 0:03:01.5]} 6. Re1 {[%clk 0:02:58.2]} 6... b5 {[%clk 0:03:01.9]} 7.
Bb3 {[%clk 0:02:57.7]} 7... d6 {[%clk 0:03:02.6]} 8. h3 {[%clk 0:02:56.7]} 8...
Na5 {[%clk 0:03:01.1]} 9. Nc3 {[%clk 0:02:51.4]} 9... O-O {[%clk 0:03:00.2]} 10.
d3 {[%clk 0:02:50.5]} 10... Bb7 {[%clk 0:02:54.8]} 11. Ne2 {[%clk 0:02:42.9]}
11... Nxb3 {[%clk 0:02:53.4]} 12. axb3 {[%clk 0:02:42.6]} 12... Re8 {[%clk
0:02:50.6]} 13. Ng3 {[%clk 0:02:37.5]} 13... Bf8 {[%clk 0:02:50.7]} 14. Nh2
{[%clk 0:02:33.9]} 14... d5 {[%clk 0:02:50.7]} 15. Qe2 {[%clk 0:02:28.3]} 15...
g6 {[%clk 0:02:44.2]} 16. Bg5 {[%clk 0:02:15.3]} 16... Bg7 {[%clk 0:02:41.3]}
17. Qe3 {[%clk 0:02:07.8]} 17... Qd6 {[%clk 0:02:37.6]} 18. Bh6 {[%clk
0:01:44.3]} 18... Bh8 {[%clk 0:02:37.2]} 19. Nf3 {[%clk 0:01:39.9]} 19... Rad8
{[%clk 0:02:35.9]} 20. Qg5 {[%clk 0:01:24.3]} 20... dxe4 {[%clk 0:02:23.1]} 21.
Nxe4 {[%clk 0:01:15.9]} 21... Nxe4 {[%clk 0:02:22.4]} 22. dxe4 {[%clk
0:01:15.7]} 22... Qf6 {[%clk 0:02:20.1]} 23. Qg3 {[%clk 0:01:13.6]} 23... Rd6
{[%clk 0:02:12.8]} 24. Bg5 {[%clk 0:01:09]} 24... Qe6 {[%clk 0:02:12.8]} 25. Be3
{[%clk 0:01:09.8]} 25... Red8 {[%clk 0:02:07]} 26. Qh4 {[%clk 0:01:06.3]} 26...
f6 {[%clk 0:02:03.5]} 27. b4 {[%clk 0:00:49.5]} 27... Bg7 {[%clk 0:02:02.1]} 28.
c3 {[%clk 0:00:49.1]} 28... Rd3 {[%clk 0:01:58.8]} 29. Bc5 {[%clk 0:00:41.2]}
29... h5 {[%clk 0:01:51.6]} 30. Nh2 {[%clk 0:00:36.9]} 30... Bh6 {[%clk
0:01:44.3]} 31. f3 {[%clk 0:00:33.2]} 31... Bd2 {[%clk 0:01:35.8]} 32. Re2
{[%clk 0:00:31.1]} 32... Bg5 {[%clk 0:01:32.4]} 33. Qg3 {[%clk 0:00:29.6]} 33...
Kh7 {[%clk 0:01:28.8]} 34. Nf1 {[%clk 0:00:29.3]} 34... Bf4 {[%clk 0:01:25.2]}
35. Qf2 {[%clk 0:00:29.3]} 35... Bh6 {[%clk 0:01:13.7]} 36. Rae1 {[%clk
0:00:26.2]} 36... Rd1 {[%clk 0:01:06.5]} 37. Rxd1 {[%clk 0:00:23.7]} 37... Rxd1
{[%clk 0:01:06.5]} 38. Re1 {[%clk 0:00:24.6]} 38... Qd7 {[%clk 0:01:05.6]} 39.
Qe2 {[%clk 0:00:22.8]} 39... Rxe1 {[%clk 0:01:01.2]} 40. Qxe1 {[%clk 0:00:23.7]}
40... Qd3 {[%clk 0:01:00.9]} 41. Kf2 {[%clk 0:00:21.9]} 41... Bc8 {[%clk
0:00:57.1]} 42. Qe2 {[%clk 0:00:21.2]} 42... Qb1 {[%clk 0:00:52.9]} 43. Ne3
{[%clk 0:00:19.9]} 43... Be6 {[%clk 0:00:51.2]} 44. Nd5 {[%clk 0:00:18.9]} 44...
Kg7 {[%clk 0:00:40.2]} 45. Be3 {[%clk 0:00:15.5]} 45... Bxe3+ {[%clk 0:00:36]}
46. Nxe3 {[%clk 0:00:15.3]} 46... Qc1 {[%clk 0:00:29.4]} 47. Qc2 {[%clk
0:00:14.4]} 47... Qxc2+ {[%clk 0:00:25.7]} 48. Nxc2 {[%clk 0:00:15.3]} 48... Kf7
{[%clk 0:00:25.3]} 49. Ke3 {[%clk 0:00:15.4]} 49... g5 {[%clk 0:00:23.7]} 50.
Ne1 {[%clk 0:00:15.3]} 50... Ke7 {[%clk 0:00:23.8]} 51. Nd3 {[%clk 0:00:15.2]}
51... Kd6 {[%clk 0:00:21.8]} 52. Nc5 {[%clk 0:00:13.2]} 52... Bc8 {[%clk
0:00:21.8]} 53. g3 {[%clk 0:00:11.7]} 53... a5 {[%clk 0:00:21.8]} 54. Nd3 {[%clk
0:00:08.4]} 54... axb4 {[%clk 0:00:20.9]} 55. cxb4 {[%clk 0:00:08.1]} 55... Bxh3
{[%clk 0:00:21.6]} 56. g4 {[%clk 0:00:05.9]} 56... hxg4 {[%clk 0:00:14.2]} 57.
Nf2 {[%clk 0:00:06]} 57... Bf1 {[%clk 0:00:12.5]} 58. Nxg4 {[%clk 0:00:04.8]}
58... Ke6 {[%clk 0:00:13]} 59. Nf2 {[%clk 0:00:04.1]} 59... Bc4 {[%clk
0:00:12.9]} 60. Nd1 {[%clk 0:00:04.1]} 60... c6 {[%clk 0:00:09.7]} 61. Nc3
{[%clk 0:00:02.7]} 61... f5 {[%clk 0:00:09.6]} 62. exf5+ {[%clk 0:00:02.7]}
62... Kxf5 {[%clk 0:00:10.2]} 63. Ne4 {[%clk 0:00:03.5]} 63... Bd5 {[%clk
0:00:08.9]} 64. Nd6+ {[%clk 0:00:03.5]} 64... Kg6 {[%clk 0:00:08.2]} 65. Nb7
{[%clk 0:00:03.2]} 65... Kh5 {[%clk 0:00:08]} 66. Nd6 {[%clk 0:00:02.5]} 66...
Kh4 {[%clk 0:00:07.1]} 67. Nf5+ {[%clk 0:00:02.7]} 67... Kh3 {[%clk 0:00:06.2]}
68. Kf2 {[%clk 0:00:02.3]} 68... g4 {[%clk 0:00:05.1]} 69. fxg4 {[%clk 0:00:02]}
69... Kxg4 {[%clk 0:00:05.4]} 70. Ne7 {[%clk 0:00:02.2]} 70... Kf4 {[%clk
0:00:05.2]} 71. Ke2 {[%clk 0:00:01.9]} 71... Ke4 {[%clk 0:00:05.3]} 72. Ng6
{[%clk 0:00:01.3]} 72... Kd4 {[%clk 0:00:05.2]} 73. Kd2 {[%clk 0:00:01.4]} 73...
e4 {[%clk 0:00:05.5]} 74. Nf4 {[%clk 0:00:01.3]} 74... Kc4 {[%clk 0:00:05.5]}
75. Ke3 {[%clk 0:00:01.1]} 75... Kxb4 {[%clk 0:00:05.7]} 76. Kd4 {[%clk
0:00:01.7]} 76... Kb3 {[%clk 0:00:05.9]} 0-1